Cogmind - Beta 17 @@@ ROGUE MODE // 2026.07.02 @ 19:21:54 Player: DZKane Result: Destroyed by Y-54 Guardian with Flak Gun Performance ------------- Evolutions (4) 2000 Regions Visited (13) 2600 Robots Destroyed (134) 670 Value Destroyed (4792) 4792 Prototype IDs (26) 520 Alien Tech Used (0) 0 Bonus (1020) 1020 TOTAL SCORE: 11602 Bonus ------- High Alert Combat Kills 26 Follower Combat Kills 872 Met Data Miner 300 Friendly Fire -178 Cogmind --------- Core Integrity 0/850 Matter 242/300 Energy 28/100 System Corruption 12% Temperature Cool (80) Movement Core (400) Ox7 Location -6/Extension Parts ------- > --- POWER (2) -------- (None) > --- PROPULSION (5) --- (None) > --- UTILITY (6) ------ Large Storage Unit Advanced Visual Processing Unit 0b10 Decoder Chip [Skirmisher] Advanced Melee Analysis Suite > --- WEAPON (2) ------- Power Sword > --- INVENTORY (15) --- Carbon-fiber Leg Hover Unit Improved Hover Unit Improved Hover Unit Large Battery (200) Improved Sensor Array Quantum Capacitor Quantum Capacitor Hacking Suite Authchip [Device] Peak State ------------ > --- POWER ------------ Improved Deuterium Engine Fission Core > --- PROPULSION ------- Light Treads Light Treads Carbon-fiber Leg Flexi-carbon Leg Gravmag System > --- UTILITY ---------- Advanced Heat Sink Large Storage Unit Advanced Visual Processing Unit 0b10 Decoder Chip [Skirmisher] Advanced Melee Analysis Suite Improved Shield Generator > --- WEAPON ----------- Hypervelocity Gauss Rifle Hypervelocity Gauss Rifle > --- INVENTORY -------- Large Battery Improved Sensor Array Improved Signal Interpreter Quantum Capacitor Quantum Capacitor Authchip [Device] Heavy Plasma Cannon Hypervelocity Gauss Rifle Hypervelocity Gauss Rifle Heavy Rocket Launcher Heavy Rocket Launcher Precision Rocket Launcher Power Sword [Rating: 63] Favorites ----------- Power Heavy Ion Engine Engine Heavy Ion Engine Power Core Fission Core Propulsion Aluminum Leg Treads Light Treads Leg Aluminum Leg Wheel Compact Wheel Hover Unit Gravmag System Flight Unit Improved Flight Unit Utility Large Storage Unit Device Shield Generator Storage Large Storage Unit Processor Advanced Visual Processing Unit Protection Reactive Plating Weapon Shock Maul Energy Gun Precision Beam Rifle Energy Cannon Heavy Ion Cannon Ballistic Gun Hypervelocity Gauss Rifle Ballistic Cannon Advanced Assault Cannon Launcher Heavy Rocket Launcher Impact Weapon Shock Maul Slashing Weapon Katana Build | -11 -10 -9 -8 -8 -7 -7 -7 -7 -6 -6 -6 -6 -6 ------- Run | Yrd Mat Mat Mat Sto Fac Low Low Dat Pro Fac Was Fac Ext Slots Evolved 8 | . . 2 2 . 2 . . . . 2 . . . Power 1 | . . . . . . . . . . 1 . . . Propulsion 3 | . . 1 1 . 1 . . . . . . . . Utility 4 | . . 1 1 . 1 . . . . 1 . . . Weapon . | . . . . . . . . . . . . . . Parts Attached 139 | . 1 22 1 29 18 8 4 . 3 4 1 26 22 Power 17 | . . 2 . 4 1 1 . . . . . 6 3 Engine 15 | . . 2 . 4 1 1 . . . . . 4 3 Core 2 | . . . . . . . . . . . . 2 . Reactor . | . . . . . . . . . . . . . . Propulsion 47 | . . 6 1 7 8 2 2 . . . . 10 11 Treads 10 | . . . . . . . . . . . . 7 3 Leg 28 | . . 6 1 5 8 2 2 . . . . 2 2 Wheel 6 | . . . . . . . . . . . . . 6 Hover 1 | . . . . . . . . . . . . 1 . Flight 2 | . . . . 2 . . . . . . . . . Utility 42 | . 1 6 . 9 8 2 1 . 2 3 . 7 3 Device 20 | . . 3 . 6 1 1 . . 1 1 . 4 3 Storage 2 | . 1 . . . 1 . . . . . . . . Processor 8 | . . . . . 3 1 . . . 2 . 2 . Hackware . | . . . . . . . . . . . . . . Protection 12 | . . 3 . 3 3 . 1 . 1 . . 1 . Artifact . | . . . . . . . . . . . . . . Weapon 33 | . . 8 . 9 1 3 1 . 1 1 1 3 5 Energy Gun 5 | . . . . 5 . . . . . . . . . Energy Cannon 4 | . . 2 . . . . . . . . . 1 1 Ballistic Gun 11 | . . 5 . 1 1 . . . . . . 2 2 Ballistic Cannon 2 | . . . . . . 1 . . . . 1 . . Launcher 6 | . . . . 2 . 2 . . . 1 . . 1 Special Weapon . | . . . . . . . . . . . . . . Impact Weapon 3 | . . . . 1 . . 1 . 1 . . . . Slashing Weapon 2 | . . 1 . . . . . . . . . . 1 Piercing Weapon . | . . . . . . . . . . . . . . Special Melee Weapon . | . . . . . . . . . . . . . . Unidentified Prototypes 15 | . . 2 . 11 2 . . . . . . . . Corrupted Parts 4 | . . . . . . 1 2 . . . . 1 . System Corruption 22 | . . . . . . 5 6 . . . . 11 . Parts Lost 58 | . . . . 4 7 3 2 . 4 1 . 8 29 Power 6 | . . . . . . 1 . . . . . 1 4 Propulsion 29 | . . . . 1 3 2 1 . 2 1 . 5 14 Utility 12 | . . . . 3 3 . 1 . 1 . . 1 3 Weapon 11 | . . . . . 1 . . . 1 . . 1 8 Highest Loss Streak 13 | . . . . 2 7 2 2 . 2 1 . 6 13 To Critical Strikes 1 | . . . . . . . 1 . . . . . . Average Backups 11 | . 7 8 9 9 13 13 13 14 12 11 12 12 12 Power . | . 1 1 1 1 1 . . . . . . . . Propulsion 1 | . 5 3 2 2 1 3 1 2 1 . . . 1 Utility 4 | . . 1 2 2 5 3 3 4 4 5 6 6 6 Weapon 5 | . 1 2 4 3 5 6 7 8 7 6 6 6 4 Tool/Special . | . . . . . . . . . . . . . . Unused Backups 48 | . 6 13 . 10 6 . . . . 2 . 2 9 Power 4 | . 1 1 . 2 . . . . . . . . . Propulsion 15 | . 2 5 . 2 1 . . . . . . . 5 Utility 13 | . 1 3 . 2 1 . . . . 1 . 1 4 Weapon 16 | . 2 4 . 4 4 . . . . 1 . 1 . Tool/Special . | . . . . . . . . . . . . . . Average Slot Usage (%) 95 | . 89 97 90 96 98 98 99 100 99 91 86 91 91 Engine 7 | . 14 11 9 9 7 6 7 7 7 6 6 7 7 Core 1 | . . . . . . . . . . . . 4 3 Treads 4 | . . . . . . . . . . . . 12 16 Leg 27 | . 28 33 36 35 37 37 38 38 37 32 26 12 2 Wheel 1 | . . . . . . . . . . . . . 11 Device 9 | . . 10 9 16 13 1 . . 5 6 13 9 6 Storage 7 | . 18 12 9 9 7 7 7 7 7 6 6 6 6 Processor 12 | . . . . . 9 23 20 15 9 17 20 21 23 Protection 5 | . . 7 9 7 6 5 9 15 15 7 . 1 . Energy Gun 2 | . 14 1 . 8 1 . . . . . . . . Energy Cannon 1 | . . 6 9 . . . . . . . . 1 3 Ballistic Gun 4 | . 14 11 . . 5 4 . . 6 . . 7 6 Impact Weapon 5 | . . . . 6 7 6 11 15 7 13 6 2 . Slashing Weapon 1 | . . 2 9 2 . . . . . . . . 2 Peak Build Rating 63 | . 7 20 21 31 43 42 37 34 36 39 38 63 53 Average Rating 36 | . 6 15 21 27 39 38 35 34 33 38 38 51 47 On Entrance 28 | 6 6 7 19 21 29 40 36 34 34 33 38 38 52 Avg Prop Armor Cover (%) 15 | . . . . . . . . . . . . 12 17 Naked Turns . | . . . . . . . . . . . . . . Heaviest Build 60 | 13 23 32 28 33 51 55 48 46 49 48 39 60 56 Greatest Support 100 | 20 20 39 52 52 61 58 50 50 50 50 40 100 100 Greatest Overweight (x) 19 | . 1 . . . 1 1 . . 1 1 . 19 2 Average Overweight (x) . | . . . . . . . . . . . . . . Largest Inventory Capacity 15 | . 10 10 10 10 15 15 15 15 15 15 15 15 15 Average Capacity 13 | . 8 10 10 10 14 15 15 15 15 15 15 15 15 Most Carried 15 | . 8 10 9 10 15 15 15 15 15 15 15 15 15 Average Carried 12 | . 7 8 9 9 13 14 14 15 14 14 15 14 14 Final Capacity 15 | 8 10 10 10 10 15 15 15 15 15 15 15 15 15 Final Carried 15 | 6 8 10 9 10 15 12 15 15 15 15 15 15 12 Class Distribution -------------------- 41% | Scavenger-Mutant 36% | Mutant 12% | Commander-Mutant 7% | Scavenger-Gladiator Dominant Class ---------------- Mutant | -10/Materials Mutant | -9/Materials Mutant | -8/Materials Mutant | -8/Storage Commander-Mutant | -7/Factory Scavenger-Mutant | -7/Lower Caves Scavenger-Gladiator | -7/Lower Caves Scavenger-Gladiator | -7/Data Miner Scavenger-Mutant | -6/Proximity Caves Scavenger-Gladiator | -6/Factory Mutant | -6/Waste Scavenger-Mutant | -6/Factory Scavenger-Mutant | -6/Extension Resources | -11 -10 -9 -8 -8 -7 -7 -7 -7 -6 -6 -6 -6 -6 ----------- Run | Yrd Mat Mat Mat Sto Fac Low Low Dat Pro Fac Was Fac Ext Matter Collected 3875 | 181 40 422 . 430 260 46 298 . 191 108 11 1288 600 Remotely . | . . . . . . . . . . . . . . Salvage Created 6696 | . 96 842 . 2091 232 120 353 . 65 93 . 1472 1332 Parts 278 | . 5 56 . 59 9 6 14 . . 1 . 74 54 Haulers Intercepted 10 | . . 2 . 6 1 . . . . . . 1 . Recyclers Shooed 6 | . 1 . . . . . . . . . . 1 4 Parts Field Recycled . | . . . . . . . . . . . . . . Retrieved Matter . | . . . . . . . . . . . . . . Parts Self-Destructed 18 | . . . . . . 6 8 . 4 . . . . Prevented 9 | . . . . . . 1 8 . . . . . . Parts Restored 1 | . . . . . . . . . . . . 1 . Broken 1 | . . . . . . . . . . . . 1 . Kills | -11 -10 -9 -8 -8 -7 -7 -7 -7 -6 -6 -6 -6 -6 ------- Run | Yrd Mat Mat Mat Sto Fac Low Low Dat Pro Fac Was Fac Ext Combat Hostiles Destroyed 94 | . 2 13 . 29 4 3 6 . 1 3 . 22 11 Melee 21 | . . . . 15 1 . 3 . . . . 1 1 Guns 38 | . 2 9 . 4 1 . . . . . . 18 4 Cannons 6 | . . 4 . . . . . . . . . 1 1 AOE 10 | . . . . . . 3 . . . 2 . . 5 Classes Destroyed 17 | . 1 5 . 4 1 1 1 . 1 . . 2 1 Worker 8 | . . 1 . 5 1 . . . . . . 1 . Builder 4 | . . . . 1 2 . . . . . . . 1 Hauler 10 | . . 2 . 6 1 . . . . . . 1 . Recycler 10 | . . 1 . 3 . . . . . . . 1 5 Minesweeper 2 | . . . . . . 1 . . 1 . . . . Mechanic 1 | . . . . . . . . . . . . 1 . Operator 2 | . . . . 1 . . . . . . . . 1 Watcher 2 | . . . . 2 . . . . . . . . . Swarmer 10 | . . . . . . . . . . . . 8 2 Cutter 1 | . . . . . 1 . . . . . . . . Grunt 47 | . 2 6 . 16 3 3 3 . . 2 . 8 4 Brawler 4 | . . . . 3 . . 1 . . . . . . Duelist 1 | . . 1 . . . . . . . . . . . Sentry 26 | . . 6 . 10 . . 2 . . 1 . 5 2 Hunter 3 | . . . . . . . . . 1 . . 1 1 Behemoth 2 | . . . . . . . . . . . . . 2 Decomposer 2 | . . . . . . 2 . . . . . . . Samaritan 1 | . . . . . . . 1 . . . . . . Thug 1 | . . . . . . . . . . . . . 1 Best Kill Streak 7 | . 2 6 . 4 3 3 5 . 1 2 . 4 7 Combat Bots Only 5 | . 2 4 . 4 3 3 5 . 1 2 . 4 5 Max Kills in Single Turn 4 | . 1 1 . 1 1 2 1 . 1 2 . 2 4 Gunslinging . | . . . . . . . . . . . . . . Exploded 2 | . . . . . . 2 . . . 2 . . 2 Melee 1 | . . . . 1 1 . 1 . . . . 1 1 Uniques/NPCs Destroyed . | . . . . . . . . . . . . . . Combat | -11 -10 -9 -8 -8 -7 -7 -7 -7 -6 -6 -6 -6 -6 -------- Run | Yrd Mat Mat Mat Sto Fac Low Low Dat Pro Fac Was Fac Ext Hostile Shots Fired 1157 | . 7 58 . 157 128 51 55 . 19 50 . 247 385 Missed 328 | . 3 14 . 44 32 19 18 . 4 28 . 74 92 Hits 829 | . 4 44 . 113 96 32 37 . 15 22 . 173 293 Melee 25 | . . 4 . 10 7 . 4 . . . . . . Projectile 804 | . 4 40 . 103 89 32 33 . 15 22 . 173 293 AOE 2 | . . . . . 2 . . . . . . . . Critical Strikes 30 | . 1 2 . 12 3 1 2 . 2 . . 4 3 Damage Taken 9839 | . 50 485 . 1329 1338 574 490 . 437 193 . 1719 3224 Core 1551 | . 34 59 . 128 186 105 113 . 72 42 . 63 749 Absorbed by Shields 1308 | . . 167 . 497 4 . . . . . . 479 161 Ignored by Resistances 180 | . . . . . 71 29 32 . 31 17 . . . Regen/Repaired (Parts) 391 | . . . . 319 . . . . . . . 72 . Core Remaining (%) 75 | 100 86 85 . 76 . . . . 32 . . . . Volleys Fired 301 | . 8 48 . 22 12 14 . . 9 2 40 70 76 Largest 2 | . 2 2 . 1 1 2 . . 1 1 1 2 2 Hottest 136 | . 60 136 . 61 61 78 . . 39 33 40 66 123 Shots Fired 464 | . 16 95 . 22 12 17 . . 12 2 40 133 115 Gun 335 | . 16 70 . 22 12 . . . 7 . . 129 79 Cannon 113 | . . 25 . . . 11 . . . . 40 4 33 Launcher 16 | . . . . . . 6 . . 5 2 . . 3 Special . | . . . . . . . . . . . . . . Kinetic 348 | . 8 63 . . 11 11 . . 7 . 40 129 79 Thermal 100 | . 8 32 . 22 1 . . . . . . 4 33 Explosive 16 | . . . . . . 6 . . 5 2 . . 3 Electromagnetic . | . . . . . . . . . . . . . . Robot Hit Streak 16 | . 6 12 . 12 2 2 . . 2 4 8 9 16 Robot Miss Streak 7 | . 2 2 . 2 5 1 . . 2 . 1 7 2 Penetration Max 2 | . . . . . . . . . . . . 2 1 Secondary Targets 3 | . . . . . . . . . . . . 2 1 Max Gunslinging Chain 1 | . . . . . . . . . . . . 1 1 Shots Hit Robots 474 | . 12 68 . 109 28 5 15 . 8 6 27 93 103 Core Hits 182 | . 5 25 . 31 3 10 4 . . 2 5 43 54 Critical Kills 32 | . . 1 . 4 1 . . . . . . 21 5 Critical Parts Destroyed 63 | . . . . 18 3 1 5 . 1 1 . 18 16 Critical Strikes 117 | . . 1 . 35 4 1 6 . 1 2 1 41 25 Burn 3 | . . . . 3 . . . . . . . . . Meltdown 1 | . . 1 . . . . . . . . . . . Destroy 61 | . . . . . . . . . . . . 37 24 Blast 1 | . . . . . . . . . . . 1 . . Smash 42 | . . . . 24 4 1 6 . 1 2 . 4 . Sever 9 | . . . . 8 . . . . . . . . 1 Melee Attacks 272 | . . 1 . 130 50 5 19 . 12 15 3 23 14 Impact 209 | . . . . 82 50 5 19 . 12 15 3 23 . Slashing 63 | . . 1 . 48 . . . . . . . . 14 Piercing . | . . . . . . . . . . . . . . Sneak Attacks 30 | . . . . 16 4 2 1 . 1 . . 1 5 Combat Hostiles . | . . . . . . . . . . . . . . Follow-up Attacks 5 | . . . . . . . 5 . . . . . . Damage Inflicted 14651 | . 152 1065 . 4787 1326 721 646 . 402 331 786 1439 2996 Guns 2313 | . 152 719 . 322 75 . . . 36 . . 569 440 Cannons 2141 | . . 346 . . . . . . . . 786 112 897 Explosions 1453 | . . . . . . 423 . . . 183 . . 847 Melee 8711 | . . . . 4465 1251 298 646 . 366 148 . 738 799 Ramming 33 | . . . . . . . . . . . . 20 13 Kinetic 2643 | . 87 650 . . 75 . . . 36 . 786 569 440 Thermal 1811 | . 65 415 . 322 . . . . . . . 112 897 Explosive 1453 | . . . . . . 423 . . . 183 . . 847 Electromagnetic . | . . . . . . . . . . . . . . Impact 6512 | . . . . 3065 1251 298 646 . 366 148 . 738 . Slashing 2199 | . . . . 1400 . . . . . . . . 799 Piercing . | . . . . . . . . . . . . . . Highest Corruption 23 | . . . . . . 11 19 19 23 . . 11 12 Average Corruption 13 | . . . . . . 9 12 19 19 . . 11 11 Corruption Purged . | . . . . . . . . . . . . . . Corruption Blocked . | . . . . . . . . . . . . . . Effects 148 | . . . . . . 4 22 6 24 . . 47 45 Message Errors 34 | . . . . . . . 6 1 6 . . 5 16 Matter Fused 44 | . . . . . . . 4 4 9 . . 19 8 Heat Flow Errors 13 | . . . . . . 1 4 . 1 . . 3 4 Energy Discharges 17 | . . . . . . 1 3 . 2 . . 8 3 Parts Rejected 3 | . . . . . . . 2 . . . . . 1 Parts Fused 2 | . . . . . . . . . 1 . . . 1 Data Loss (minor) 17 | . . . . . . 2 3 1 2 . . 6 3 Data Loss (major) 7 | . . . . . . . . . . . . 2 5 Misfires 4 | . . . . . . . . . 3 . . . 1 Alerts 1 | . . . . . . . . . . . . 1 . Weapon Failures 6 | . . . . . . . . . . . . 3 3 Overload Shots . | . . . . . . . . . . . . . . Overflow Damage 3380 | . . . . 1635 509 217 254 . 163 47 . 231 324 Projectiles 25 | . . . . . . . . . . . . . 25 Explosions 93 | . . . . . . 32 . . . 10 . . 51 Melee 3262 | . . . . 1635 509 185 254 . 163 37 . 231 248 Knockbacks 23 | . . . . 11 6 . . . 2 . . 4 . Impact 20 | . . . . 10 4 . . . 2 . . 4 . Kinetic . | . . . . . . . . . . . . . . Secondary 3 | . . . . 1 2 . . . . . . . . Self-Inflicted Damage 115 | . . . . . . . . . 9 . . . 106 Shots 3 | . . . . . . . . . 1 . . . 2 Rammed 4 | . . . . . . . . . . . . 2 2 Targets Rammed 4 | . . . . . . . . . . . . 2 2 Kicked . | . . . . . . . . . . . . . . Crushed . | . . . . . . . . . . . . . . Highest Temperature 293 | . 21 224 . 64 . 293 193 . 87 . . 248 277 Average Temperature 89 | . 13 71 . 22 . 110 93 . 24 . . 77 126 Received Heat Transfer 2938 | . 48 162 . 572 357 388 135 . 18 90 . 467 701 Effects 2 | . . . . . . 1 . . . . . . 1 Energy Bleed 2 | . . . . . . 1 . . . . . . 1 Siege Activations . | . . . . . . . . . . . . . . Martial Activations . | . . . . . . . . . . . . . . Shielding Activations . | . . . . . . . . . . . . . . Robots Disrupted . | . . . . . . . . . . . . . . Combat Hostiles . | . . . . . . . . . . . . . . Robots Corrupted 27 | . . . . 14 4 . 4 . 2 1 . 2 . Combat Hostiles 19 | . . . . 10 2 . 3 . 1 1 . 2 . Parts Fried 28 | . . . . 20 5 . 1 . 1 . . 1 . Impact Corruptions 88 | . . . . 43 12 5 15 . 5 2 . 6 . Robots Melted 1 | . . 1 . . . . . . . . . . . Combat Hostiles . | . . . . . . . . . . . . . . Parts Melted 4 | . . 3 . . . . . . . . . . 1 Heat Transferred 3352 | . 150 779 . 925 . . . . . . . 148 1350 Parts Sabotaged . | . . . . . . . . . . . . . . Parts Stolen . | . . . . . . . . . . . . . . Parts Stripped . | . . . . . . . . . . . . . . Power Chain Reactions . | . . . . . . . . . . . . . . Alert | -11 -10 -9 -8 -8 -7 -7 -7 -7 -6 -6 -6 -6 -6 ------- Run | Yrd Mat Mat Mat Sto Fac Low Low Dat Pro Fac Was Fac Ext Maximum Alert Level 2 | . . 1 . 2 1 . . . . . . 2 1 Low Security (%) 69 | . 100 92 100 45 67 . . . . 100 100 72 69 Level 1 21 | . . 7 . 26 32 . . . . . . 20 30 Level 2 9 | . . . . 27 . . . . . . . 7 . Level 3 . | . . . . . . . . . . . . . . Level 4 . | . . . . . . . . . . . . . . Level 5 . | . . . . . . . . . . . . . . High Security . | . . . . . . . . . . . . . . Max Security . | . . . . . . . . . . . . . . Peak Influence 541 | . 60 216 74 541 250 . . . . 171 46 499 320 Initial 243 | . . . 69 26 243 . . . . . 45 . 241 Average 147 | . 17 101 66 238 182 . . . . 83 6 124 113 Influence Increases 4330 | . 80 431 15 1307 551 75 120 . 67 243 8 930 503 Destroy 0b10 Robot/C 2360 | . 40 260 . 680 300 60 120 . 40 100 . 440 320 Destroy 0b10 Robot/NC 205 | . . 20 . 90 25 5 . . 5 . . 20 40 Destroy Leader 588 | . 10 94 . 196 84 10 . . 20 20 . 112 42 Allied During Kill 266 | . . . . 102 107 . . . 2 12 . . 43 Trap Triggered on 0b10 10 | . . . . . . . . . . . . 10 . Successful Hack 155 | . 30 11 . 42 . . . . . . . 72 . Disable Machine 315 | . . 45 . 105 . . . . . 75 . 75 15 Destroy Structure 146 | . . 1 . 17 20 . . . . 36 8 36 28 Partial Spotted 15 | . . . 15 . . . . . . . . . . Lose Combat Pursuer 270 | . . . . 75 15 . . . . . . 165 15 Influence Decreases 4240 | . 80 266 116 835 935 227 120 . 67 114 137 437 906 Entered New Map 820 | . . . 96 38 293 57 . . . . 84 . 252 Time Decay 2524 | . 80 266 20 587 392 160 100 . 55 84 53 375 352 Lost Part 422 | . . . . 40 70 10 20 . . 10 . 62 210 Lost Ally 324 | . . . . 20 180 . . . 12 20 . . 92 Purge Threat 150 | . . . . 150 . . . . . . . . . Squads Dispatched 23 | . . 2 . 3 6 . 1 . . 1 . 7 3 Investigation 7 | . . 1 . 1 1 . . . . 1 . 2 1 Extermination 3 | . . . . . 1 . . . . . . 2 . Reinforcement 12 | . . 1 . 2 4 . . . . . . 3 2 Assault 1 | . . . . . . . 1 . . . . . . Garrison . | . . . . . . . . . . . . . . Intercept . | . . . . . . . . . . . . . . Searches Triggered . | . . . . . . . . . . . . . . Data Miner Redirects 1 | . . . . . . . . . . . . 1 . Construction Impeded 3 | . . . . . 1 . . . . . . 1 1 Haulers Reinforced 1 | . . . . . . . . . . . . 1 . Active Scanning Responses . | . . . . . . . . . . . . . . Cargo Convoy Interrupts . | . . . . . . . . . . . . . . Stealth | -11 -10 -9 -8 -8 -7 -7 -7 -7 -6 -6 -6 -6 -6 --------- Run | Yrd Mat Mat Mat Sto Fac Low Low Dat Pro Fac Was Fac Ext Distress Signals 7 | . . 2 . 2 . . . . . . . . 3 Communications Jammed . | . . . . . . . . . . . . . . Distress Signals . | . . . . . . . . . . . . . . Times Spotted 169 | . 8 18 . 43 19 6 6 . 5 3 6 30 25 Peak Tracking Total 11 | . 4 6 . 6 7 3 5 . 3 2 6 5 11 Tactical Retreats 13 | . . . . 3 1 2 . . . . . 6 1 ECM-based Alert Blocks 2 | . . . . . . 2 . . . . . . . Traps | -11 -10 -9 -8 -8 -7 -7 -7 -7 -6 -6 -6 -6 -6 ------- Run | Yrd Mat Mat Mat Sto Fac Low Low Dat Pro Fac Was Fac Ext Traps Triggered 5 | . . . . 3 . . . . . 1 . . 1 Indirectly . | . . . . . . . . . . . . . . Trap Hack Attempts . | . . . . . . . . . . . . . . Triggered . | . . . . . . . . . . . . . . Disarmed . | . . . . . . . . . . . . . . Reprogrammed . | . . . . . . . . . . . . . . Reused 1 | . . . . . . . . . . . . 1 . Traps Extracted . | . . . . . . . . . . . . . . Installed 2 | . . . . . . . . . . . . 2 . Triggered 1 | . . . . . . . . . . . . 1 . Most Traps Carried 2 | . . . . . . . . . 2 2 2 2 . Machines | -11 -10 -9 -8 -8 -7 -7 -7 -7 -6 -6 -6 -6 -6 ---------- Run | Yrd Mat Mat Mat Sto Fac Low Low Dat Pro Fac Was Fac Ext Machines Disabled 21 | . . 3 . 7 . . . . . 5 . 5 1 Max in Single Turn 4 | . . 2 . 1 . . . . . 1 . 4 . Garrison Access 1 | . . . . 1 . . . . . . . . . Machines Repaired . | . . . . . . . . . . . . . . Machines Dismantled . | . . . . . . . . . . . . . . Machines Sabotaged . | . . . . . . . . . . . . . . Overloaded Fab Kills . | . . . . . . . . . . . . . . Hacking | -11 -10 -9 -8 -8 -7 -7 -7 -7 -6 -6 -6 -6 -6 --------- Run | Yrd Mat Mat Mat Sto Fac Low Low Dat Pro Fac Was Fac Ext Machines Accessed 39 | . 2 3 . 17 2 . . 4 . 3 . 6 2 Terminals 24 | . 2 3 . 14 2 . . . . . . 1 2 Fabricators 2 | . . . . . . . . . . . . 2 . Repair Stations 5 | . . . . 2 . . . . . 1 . 2 . Recycling Units . | . . . . . . . . . . . . . . Scanalyzers 2 | . . . . . . . . . . 1 . 1 . Garrison Access 2 | . . . . 1 . . . . . 1 . . . Total Hacks 115 | . 4 7 . 44 5 . . 32 . 8 . 12 3 Successful 73 | . 2 2 . 24 1 . . 32 . 2 . 10 . Failed 41 | . 2 4 . 20 4 . . . . 6 . 2 3 Catastrophic 6 | . 1 . . 2 1 . . . . . . 1 1 Database Lockouts 1 | . . 1 . . . . . . . . . . . Manual 14 | . 4 6 . 3 . . . . . . . 1 . Terminals 48 | . 4 7 . 28 5 . . . . . . 1 3 Fabricators 3 | . . . . . . . . . . . . 3 . Repair Stations 19 | . . . . 14 . . . . . 1 . 4 . Recycling Units . | . . . . . . . . . . . . . . Scanalyzers 9 | . . . . . . . . . . 5 . 4 . Garrison Access 4 | . . . . 2 . . . . . 2 . . . Terminal Hacks 48 | . . 2 . 13 1 . . 32 . . . . . Record 11 | . . . . . . . . 11 . . . . . Part Schematic 12 | . . . . . . . . 12 . . . . . Robot Schematic 6 | . . . . . . . . 6 . . . . . Robot Analysis 1 | . . 1 . . . . . . . . . . . Prototype ID Bank 8 | . . 1 . 4 . . . 3 . . . . . Open Door 7 | . . . . 7 . . . . . . . . . Branch Access Points 1 | . . . . . 1 . . . . . . . . Unreport Threat 1 | . . . . 1 . . . . . . . . . Zone Layout 1 | . . . . 1 . . . . . . . . . Fabricator Hacks 1 | . . . . . . . . . . . . 1 . Build 1 | . . . . . . . . . . . . 1 . Repair Station Hacks 14 | . . . . 10 . . . . . . . 4 . Scan Component 7 | . . . . 5 . . . . . . . 2 . Repair 6 | . . . . 5 . . . . . . . 1 . Refit 1 | . . . . . . . . . . . . 1 . Recycling Unit Hacks . | . . . . . . . . . . . . . . Scanalyzer 6 | . . . . . . . . . . 2 . 4 . Insert Component 2 | . . . . . . . . . . 1 . 1 . Analyze 2 | . . . . . . . . . . 1 . 1 . Retrieve Study 2 | . . . . . . . . . . . . 2 . Garrison Access Hacks 1 | . . . . 1 . . . . . . . . . Seal Access 1 | . . . . 1 . . . . . . . . . Unauthorized Hacks 3 | . 2 . . . . . . . . . . 1 . Terminals 2 | . 2 . . . . . . . . . . . . Assimilate 1 | . 1 . . . . . . . . . . . . Skim 1 | . 1 . . . . . . . . . . . . Fabricators 1 | . . . . . . . . . . . . 1 . Recompile 1 | . . . . . . . . . . . . 1 . Repair Stations . | . . . . . . . . . . . . . . Recycling Units . | . . . . . . . . . . . . . . Scanalyzers . | . . . . . . . . . . . . . . Garrison Access . | . . . . . . . . . . . . . . Data Cores Recovered . | . . . . . . . . . . . . . . Used . | . . . . . . . . . . . . . . Hacking Detections 28 | . 2 3 . 11 2 . . . . 3 . 5 2 Full Trace Events 5 | . 1 1 . 1 . . . . . 1 . 1 . Feedback Events . | . . . . . . . . . . . . . . Feedback Blocked . | . . . . . . . . . . . . . . Robot Schematics Acquired 6 | . . . . . . . . 6 . . . . . Robots Built . | . . . . . . . . . . . . . . Authchips . | . . . . . . . . . . . . . . Time . | . . . . . . . . . . . . . . Total Robot Build Rating . | . . . . . . . . . . . . . . Part Schematics Acquired 13 | . . . . . . . . 12 . . . 1 . Parts Built 2 | . . . . . . . . . . . . 2 . Authchips . | . . . . . . . . . . . . . . Time 58 | . . . . . . . . . . . . 58 . Total Part Build Rating 14 | . . . . . . . . . . . . 14 . Part Studies Acquired 2 | . . . . . . . . . . . . 2 . Parts Repaired 6 | . . . . 5 . . . . . . . 1 . Time 198 | . . . . 176 . . . . . . . 22 . Parts Recycled . | . . . . . . . . . . . . . . Recycled Matter . | . . . . . . . . . . . . . . Retrieved Matter . | . . . . . . . . . . . . . . Retrieved Components . | . . . . . . . . . . . . . . Parts Scanalyzed 1 | . . . . . . . . . . 1 . . . Part Schematics Acquired 1 | . . . . . . . . . . . . 1 . Parts Damaged 1 | . . . . . . . . . . 1 . . . Bothacking | -11 -10 -9 -8 -8 -7 -7 -7 -7 -6 -6 -6 -6 -6 ------------ Run | Yrd Mat Mat Mat Sto Fac Low Low Dat Pro Fac Was Fac Ext Used RIF Installer . | . . . . . . . . . . . . . . Robots Hacked . | . . . . . . . . . . . . . . Non-combat . | . . . . . . . . . . . . . . Combat . | . . . . . . . . . . . . . . Robot Hacks Applied . | . . . . . . . . . . . . . . Relay Couplers Released . | . . . . . . . . . . . . . . Fabnet Peak Effective % . | . . . . . . . . . . . . . . Robots Rewired 1 | . . . . . . . 1 . . . . . . Allies Hacked 1 | . . . . . . . . . 1 . . . . Hacks Repelled . | . . . . . . . . . . . . . . Allies | -11 -10 -9 -8 -8 -7 -7 -7 -7 -6 -6 -6 -6 -6 -------- Run | Yrd Mat Mat Mat Sto Fac Low Low Dat Pro Fac Was Fac Ext Total Allies 20 | . 1 . . 10 . . 1 . 1 . . . 7 Largest Group 10 | . 1 1 . 10 9 . 1 1 1 1 . . 4 Highest-Rated Group 173 | . 10 10 . 173 157 . 32 32 96 96 . . 124 Highest-Rated Ally 96 | . 10 10 . 29 29 . 32 32 96 96 . . 31 Total Orders . | . . . . . . . . . . . . . . Ally Attacks 230 | . . . . 40 122 . . . 10 1 . . 57 Total Damage 3726 | . . . . 472 1287 . . . 331 684 . . 952 Kills 26 | . . . . 5 12 . . . 1 2 . . 6 Allies Corrupted . | . . . . . . . . . . . . . . Allies Melted . | . . . . . . . . . . . . . . Intel | -11 -10 -9 -8 -8 -7 -7 -7 -7 -6 -6 -6 -6 -6 ------- Run | Yrd Mat Mat Mat Sto Fac Low Low Dat Pro Fac Was Fac Ext Active Infowar (turns) 5848 | . . . . . 777 442 620 105 626 272 380 1633 993 Optics 5071 | . . . . . . 442 620 105 626 272 380 1633 993 Sensors 1273 | . . . . . 777 . . . . 13 380 103 . Seismic 1410 | . . . . . . . . . 331 272 380 427 . Decoding 3217 | . . . . . . . . . . 211 380 1633 993 ECM 284 | . . . . . . 150 . . 134 . . . . Robot Analysis Total 1 | . . 1 . . . . . . . . . . . Derelict Logs Recovered 3 | . . . . . . . 1 . 2 . . . . Drone Launches . | . . . . . . . . . . . . . . Drone Recoveries . | . . . . . . . . . . . . . . Decoded 0b10 Intel 62 | . . . . . . . . . . 7 . 43 12 Patrols 29 | . . . . . . . . . . 3 . 22 4 Investigations 7 | . . . . . . . . . . 2 . 4 1 Reinforcements 9 | . . . . . . . . . . . . 4 5 Guards 17 | . . . . . . . . . . 2 . 13 2 Exploration | -11 -10 -9 -8 -8 -7 -7 -7 -7 -6 -6 -6 -6 -6 ------------- Run | Yrd Mat Mat Mat Sto Fac Low Low Dat Pro Fac Was Fac Ext Turns Passed 8963 | . 241 627 41 1931 920 574 620 105 626 272 380 1633 993 Spaces Moved 4909 | 1 148 313 34 994 536 377 452 78 433 144 214 669 516 Core 2 | . . . . . . . . . . . . 2 . Treads 389 | . . . . . . . . . . . . 201 188 Legs 4190 | 1 148 313 34 994 536 377 452 78 433 144 214 466 . Wheels 328 | . . . . . . . . . . . . . 328 Hover . | . . . . . . . . . . . . . . Flight . | . . . . . . . . . . . . . . Fastest Speed 100 | 120 120 120 120 120 114 120 120 120 120 120 120 120 100 Average Speed 130 | 120 139 120 120 120 117 125 120 120 121 124 120 181 134 Slowest Speed 1000 | 120 190 120 120 120 187 190 120 120 190 190 120 1000 320 Overloaded Moves . | . . . . . . . . . . . . . . Propulsion Burnouts . | . . . . . . . . . . . . . . Robots Hopped . | . . . . . . . . . . . . . . Potential Cave-ins 11 | . . . . . . 4 . . 6 . 1 . . Cave-ins Triggered 2 | . . . . . . 1 . . 1 . . . . Exploration Rate (%) 42 | 2 39 33 5 96 15 66 71 72 58 4 76 18 45 Regions Visited 13 Branch Regions 6 Pre-discovered Areas 2 | . . . . 1 . . . 1 . . . . . Known Exits Taken 3 | . . . . . 1 . . . 1 . . 1 . Unknown Exits Taken 8 | 1 1 1 1 1 . 1 1 1 . . . . . Scrap Searched 6 | . . . . . . . 2 . 4 . . . . Spaces Dug 179 | . . . . 17 20 33 . . 90 9 5 5 . Terrain Destroyed 304 | . . . . 17 20 58 . . 90 10 10 54 45 Melee 62 | . . . . 17 20 2 . . 6 9 3 5 . Projectile 24 | . . . . . . 11 . . . . 7 . 6 AOE 206 | . . . . . . 45 . . 84 1 . 41 35 Terrain Rammed . | . . . . . . . . . . . . . . Walls Destroyed . | . . . . . . . . . . . . . . Machines Disabled . | . . . . . . . . . . . . . . Actions | -11 -10 -9 -8 -8 -7 -7 -7 -7 -6 -6 -6 -6 -6 --------- Run | Yrd Mat Mat Mat Sto Fac Low Low Dat Pro Fac Was Fac Ext Total 6502 | . 167 477 34 1488 719 448 501 89 499 208 290 909 673 Wait 611 | . 9 50 . 226 62 38 18 12 30 36 33 74 23 Move 4896 | . 147 312 33 993 535 375 451 77 432 144 213 668 516 Hop . | . . . . . . . . . . . . . . Pick Up 92 | . 2 13 . 22 17 1 6 . 5 4 . 15 7 Fast Attach 69 | . 1 8 . 22 8 . 2 . 1 . . 14 13 Attach 43 | . . 3 1 7 8 4 2 . 3 1 . 4 10 Detach 3 | . . . . 2 . . . . . . . . 1 Swap 70 | . . 13 . 12 9 8 3 . 5 4 1 10 5 Drop 131 | . . 29 . 42 18 2 2 . 2 3 . 27 6 Fire 301 | . 8 48 . 22 12 14 . . 9 2 40 70 76 Melee 265 | . . 1 . 130 50 5 13 . 12 14 3 23 14 Ram . | . . . . . . . . . . . . . . Kick . | . . . . . . . . . . . . . . Crush 4 | . . . . . . . . . . . . 2 2 Escape Stasis 11 | . . . . 10 . 1 . . . . . . . Rewire 4 | . . . . . . . 4 . . . . . . Trap 2 | . . . . . . . . . . . . 2 . Miscellaneous . | . . . . . . . . . . . . . . Route ------- -11/Scrapyard -10/Materials (discovered 2 exits: *Mat x2) -9/Materials -8/Materials -8/Storage (discovered 2 exits: *Fac / [*Rec]) -7/Factory (discovered 3 exits: *Fac / *Low x2) -7/Lower Caves -7/Lower Caves -7/Data Miner -6/Proximity Caves -6/Factory -6/Waste -6/Factory (discovered 2 exits: *Low / *Ext) -6/Extension History --------- Turn | Location | Event 1 | -11/Scrapyard | Discovered new exit (range 0) 1 | -11/Scrapyard | Entered Materials 77 | -10/Materials | Discovered new exit (range 15) 193 | -10/Materials | Discovered new exit (range 16) 242 | -10/Materials | Entered another Materials area 242 | -9/Materials | Accompanied by 1 ally 242 | -9/Materials | Evolved 2 slots: Propulsion x1, Utility x1 301 | -9/Materials | Build established: Mutant 787 | -9/Materials | Central database locked down 843 | -9/Materials | Discovered new exit (range 8) 869 | -9/Materials | Entered another Materials area 869 | -8/Materials | Evolved 2 slots: Propulsion x1, Utility x1 870 | -8/Materials | Discovered new exit (range 16) 910 | -8/Materials | Entered Storage 1851 | -8/Storage | Repaired Imp. Aluminum Leg 1870 | -8/Storage | Repaired Prc. Beam Rifle 1884 | -8/Storage | Repaired Imp. Aluminum Leg 1912 | -8/Storage | Repaired Lgt. Armor Plating 2063 | -8/Storage | Repaired Lgt. Armor Plating 2084 | -8/Storage | Used back door to open Recycling access 2084 | -8/Storage | Discovered new exit (range 4) 2440 | -8/Storage | Assisted by bots powering up and referring to "LRC-V3" 2611 | -8/Storage | Learned location of Armory (-3) 2723 | -8/Storage | Build established: Commander-Mutant 2816 | -8/Storage | Discovered new exit (range 4) 2841 | -8/Storage | Entered Factory 2841 | -7/Factory | Accompanied by 9 allies 2841 | -7/Factory | Evolved 2 slots: Propulsion x1, Utility x1 3478 | -7/Factory | Identified exit to Lower Caves 3578 | -7/Factory | Discovered new exit (range 4) 3627 | -7/Factory | Lost 5 allies 3696 | -7/Factory | Lost 7 parts (3n3u1w) 3742 | -7/Factory | Identified exit to Factory 3761 | -7/Factory | Entered Lower Caves 3801 | -7/Lower Caves | Encountered a Warlord checkpoint 3991 | -7/Lower Caves | Build established: Scavenger-Mutant 3993 | -7/Lower Caves | Spotted B-75 Beast 4214 | -7/Lower Caves | Crushed by falling debris 4251 | -7/Lower Caves | System corruption reached 10% 4321 | -7/Lower Caves | Discovered new exit (range 12) 4335 | -7/Lower Caves | Entered another Lower Caves area 4447 | -7/Lower Caves | Encountered a Warlord checkpoint 4465 | -7/Lower Caves | Learned 8 Factory zone layouts 4565 | -7/Lower Caves | Attracted the attention of an 0b10 checkpoint 4744 | -7/Lower Caves | Core integrity fell below 50% 4763 | -7/Lower Caves | Attracted the attention of an 0b10 outpost 4860 | -7/Lower Caves | Build established: Scavenger-Gladiator 4936 | -7/Lower Caves | Discovered new exit (range 9) 4955 | -7/Lower Caves | Entered Data Miner 4955 | -7/Data Miner | Accompanied by 1 ally 4955 | -7/Data Miner | Discovered new exit (range 6) 4973 | -7/Data Miner | Met Data Miner 5002 | -7/Data Miner | Learned location of Section 7 (-2) 5002 | -7/Data Miner | Acquired the access code to Warlord's prototype stash 5020 | -7/Data Miner | Received God Mode back door access code from Data Miner 5060 | -7/Data Miner | Entered Proximity Caves 5060 | -6/Proximity Caves | Accompanied by 1 ally 5223 | -6/Proximity Caves | Learned Factory emergency access door positions 5379 | -6/Proximity Caves | Build established: Scavenger-Mutant 5573 | -6/Proximity Caves | Spotted B-75 Beast 5661 | -6/Proximity Caves | Crushed by falling debris 5674 | -6/Proximity Caves | Escorted by Enhanced Grunt 5686 | -6/Proximity Caves | Entered Factory 5686 | -6/Factory | Accompanied by 1 ally 5686 | -6/Factory | Evolved 2 slots: Power x1, Utility x1 5687 | -6/Factory | Identified exit to Factory 5958 | -6/Factory | Sucked down chute 5958 | -6/Factory | Entered Waste 6005 | -6/Waste | Spotted C-40 Crusher 6070 | -6/Waste | Spotted C-40 Crusher 6102 | -6/Waste | Spotted C-40 Crusher 6132 | -6/Waste | Spotted C-40 Crusher 6158 | -6/Waste | Spotted C-40 Crusher 6245 | -6/Waste | Spotted C-40 Crusher 6296 | -6/Waste | Build established: Mutant 6316 | -6/Waste | Discovered new exit (range 11) 6338 | -6/Waste | Entered Factory 6528 | -6/Factory | Fabricated Quantum Capacitor (x2) 6638 | -6/Factory | Incoming investigation squad redirected 6757 | -6/Factory | Repaired Power Maul+ 6853 | -6/Factory | Lost 6 parts (4n1u1w) 6863 | -6/Factory | System corruption reached 10% 7343 | -6/Factory | Build established: Scavenger-Mutant 7490 | -6/Factory | Discovered new exit (range 19) 7506 | -6/Factory | Discovered new exit (range 11) 7613 | -6/Factory | Identified exit to Lower Caves 7968 | -6/Factory | Identified exit to Extension 7971 | -6/Factory | Entered Extension 8036 | -6/Extension | Rescued a captive Derelict 8036 | -6/Extension | Rescued a captive Derelict 8194 | -6/Extension | Rescued a captive Derelict 8337 | -6/Extension | Lost 7 parts (4n1u2w) 8495 | -6/Extension | Lost 6 parts (2p2n2w) 8521 | -6/Extension | Disrupted transfer network 8591 | -6/Extension | Rescued a captive Derelict 8592 | -6/Extension | Rescued a captive Derelict 8717 | -6/Extension | Rescued a captive Derelict 8718 | -6/Extension | Rescued a captive Derelict 8899 | -6/Extension | Spotted B-75 Beast 8905 | -6/Extension | Spotted B-75 Beast 8914 | -6/Extension | Destroyed B-75 Beast 8953 | -6/Extension | Core integrity fell below 50% 8955 | -6/Extension | Destroyed B-75 Beast 8960 | -6/Extension | Lost 4 allies 8963 | -6/Extension | Core integrity fell below 20% 8964 | -6/Extension | Destroyed by Y-54 Guardian with Flak Gun Last Messages --------------- 08953_ Acquired 1 matter. 08954_ U-05 Engineer builds a Wall. 08955_ Hvy. Rocket Launcher destroyed. 08955_ Imp. Cooling System destroyed. 08955_ B-75 Beast destroyed. 08955_ U-05 Engineer destroyed. 08955_ G-50 Soldier destroyed. 08955_ R-10 Processor destroyed. 08955_ Imp. Heat Sink destroyed. 08955_ Destroyed Imp. Heat Sink. 08956_ Critical hit (Burn: +37). 08956_ Hvy. Rocket Launcher destroyed. 08957_ Com. Wheel destroyed. 08958_ Hvy. Plasma Cannon destroyed. 08959_ G-50 Soldier destroyed. 08960_ >> DECODED: Patrol location. 08961_ G-50 Soldier destroyed. 08961_ Prc. Rocket Launcher destroyed. 08961_ Destroyed Prc. Rocket Launcher. 08962_ Critical hit (Burn: +37). Map ----- +----------------------------------------------------+ | ???#######??????## #??#" #?# ###?# #?????????????? | | ?????????????????# #??## ### ##??# #?????????????? | | ?????????????????###???# ## #??# #?????????????? | | ???????????????????????# ! #??# #?????????????? | | ???????????????????????###" #??# #?????????????? | | ???????????????????????#[######??# #?????????????? | | ???????????????????????#!#???????# #?????????????? | | ???????????????????????###???????# #?????????????? | | ?????????????????????????????????# #?????????????? | | ?????????????????????????????????? ??????????????? | | ?????????????????????????????????? ??????????????? | | ?????????????????????????????????? ??????????????? | | ?????????????????????????????????? ??????????????? | | ?????????????????????????????????? ??????????????? | | ?????????????????????????????????? ????#?????????? | | ?????????????????????????????????? ?## ## ???????? | | ?????????????????????????????????? "" ??????? | | ????????????????????????????##???? " ??????? | | ??????????????????????###### ###? A ?????? | | ????????????????????### # ?????? | | ###################### * RR ?????? | | % %= % ????? | | w % !% %g ????? | | [ %Yg!* g[ ???? | | *!! ! Y[ =]%*=% ???? | | !%=!%= @ %] =uk ???? | | ###################### ???? | | ?????????????????????## # # ????? | | ??????????????????????######?###???? ?????? | | ???????????????????????????????????????? ?????? | | ?????????????????????????????????????????????????? | | ?????????????????????????????????????????????????? | | ?????????????????????????????????????????????????? | | ?????????????????????????????????????????????????? | | | | | | | | | | | | | | | | | | | | | | | | | | | | | | | | | +----------------------------------------------------+ Best States ------------- Heat Dissipation 78 Energy Generation 29 Energy Capacity 500 Matter Stores 300 Matter Capacity 300 Sight Range 20 Robot Scan Range 15 Terrain Scan Density 10 ECM Strength 1 Armor Coverage 300 Resistance: KI 20 Resistance: EM 15 Evasion (%) 55 Melee Accuracy 14 Recoil Reduction 5 Authchip Count 1 Item Schematics ----------------- Combat Drone Bay | -7/Data Miner | Free Lgt. Regenerative Plating | -7/Data Miner | Free Multireflex Exoskeleton | -7/Data Miner | Free Thermal Defense Suite | -7/Data Miner | Free Imp. Heavy Machine Gun | -7/Data Miner | Free Linear Gravjet | -7/Data Miner | Free Imp. Dynamic Insulation System | -7/Data Miner | Free Disruptor Cannon | -7/Data Miner | Free Field Propulsion Drive | -7/Data Miner | Free Enh. Gauss Cannon | -7/Data Miner | Free Adv. Cryofiber Web | -7/Data Miner | Free Imp. Armor Integrity Analyzer | -7/Data Miner | Free Prc. Rocket Launcher | -6/Factory | Scanalyzed Robot Schematics ------------------ M-14 Sweeper | -7/Data Miner | Free A-15 Conveyor | -7/Data Miner | Free L-41 Fighter | -7/Data Miner | Free R-10 Processor | -7/Data Miner | Free Y-54 Guardian | -7/Data Miner | Free D-63 Destroyer | -7/Data Miner | Free Fabricated ------------ Quantum Capacitor | x2 | -6/Factory | Preloaded Repaired ---------- Imp. Aluminum Leg | 15% | -8/Storage Prc. Beam Rifle | 9% | -8/Storage Imp. Aluminum Leg | 43% | -8/Storage Lgt. Armor Plating | 52% | -8/Storage Lgt. Armor Plating | 62% | -8/Storage Power Maul | 48% | -6/Factory Studied --------- Greatsword | -6/Factory | Hacked Power Maul | -6/Factory | Hacked Alien Tech Used ----------------- None Achievements -------------- None Challenges ------------ None Game ------ Seed AssaultMetafieldMount Manual? 0 Play Time 01:36:50 Cumulative 300.3 hours Start 2026.07.01 @ 21:36:32 End 2026.07.02 @ 19:21:54 Sessions 2 Manual Loads 0 Difficulty Rogue Special Mode None Game No. 174 Rogue 174 Adventurer 0 Explorer 0 Win Type - Total 16 Types 16/0/0/0/0/0/0/0/0/0 Lore% 75 Gallery% 67 Achievement% 46 Wizard Run 0 Options --------- Layout 1 ASCII 0 Keyboard 0 Movement Numpad Keybinds 0 Fullscreen 1 Font 24/Smallcaps Map View 50x35 Zoom Use 0% Tactical HUD 1 Map Filters NONE Filters NONE Steam 1 RUN: 6a43d132-1912-4809-b60a-7d528620af65